bitfinex-derivatives/quotes_SOLF0:USTF0_20240930
["timestamp","ask_amount","ask_price","bid_price","bid_amount"]
[1727679797458,7.81,156.66,156.59,0.12502]
[1727679797664,7.81,156.65,156.6,7.81]
[1727679798558,3.1921,156.63,156.6,11.0026]
[1727679799555,3.1921,156.63,156.61,3.1924]
[1727679799957,3.1919,156.64,156.61,3.1924]
[1727679801368,3.1919,156.64,156.61,11.0024]
[1727679805165,1.3523,156.7,156.63,7.81]
[1727679805365,7.93502,156.71,156.66,7.81]
[1727679805662,3.191,156.69,156.66,7.81]
[1727679805870,3.191,156.69,156.68,7.81]
[1727679806057,0.12502,156.71,156.68,7.81]
[1727679806254,3.31552,156.71,156.68,11.001]
[1727679806455,3.31552,156.71,156.69,7.81]
[1727679811277,0.12502,156.71,156.7,7.81]
[1727679811667,78.65715316,156.77,156.7,7.81]
[1727679811872,78.65715316,156.77,156.74,7.81]
[1727679812072,3.1897,156.75,156.74,7.81]
[1727679817285,3.1894,156.76,156.74,7.81]
[1727679817580,3.1894,156.76,156.75,7.81]
[1727679822087,3.31432,156.77,156.75,7.81]
[1727679822494,0.12502,156.77,156.75,7.81]
[1727679825291,3.1894,156.76,156.75,7.81]
[1727679825594,0.12502,156.77,156.75,7.81]
[1727679826293,3.31432,156.77,156.75,7.81]
[1727679833599,3.1894,156.76,156.75,7.81]
[1727679843298,0.12502,156.77,156.75,10.9994]
[1727679843511,0.12502,156.77,156.75,7.81]
[1727679844314,0.12502,156.77,156.75,10.9995]
[1727679847206,3.31422,156.77,156.7,3.1905]
[1727679847413,0.12502,156.77,156.68,61.15951628]
[1727679847621,0.12502,156.77,156.73,7.81]
[1727679847906,0.12502,156.77,156.68,61.15951628]
[1727679847907,0.12502,156.77,156.74,7.81]
[1727679848312,3.1895,156.76,156.74,7.81]
[1727679848703,0.12502,156.77,156.74,7.81]
[1727679848902,0.12502,156.77,156.75,7.81]
[1727679849808,3.1894,156.76,156.75,7.81]
[1727679850112,0.12502,156.77,156.75,10.9996]
[1727679851303,3.31432,156.77,156.75,10.9996]
[1727679852013,3.31432,156.77,156.75,7.81]
[1727679852809,0.12502,156.77,156.68,61.15951628]
[1727679853006,3.1894,156.76,156.73,3.1898]
[1727679853211,3.1894,156.76,156.75,7.81]
[1727679856720,0.12502,156.77,156.75,10.9996]
[1727679866323,0.12502,156.77,156.76,3.1894]
[1727679880837,0.12502,156.77,156.75,10.9995]
[1727679881635,0.12502,156.77,156.75,3.1895]
[1727679881835,0.12502,156.77,156.74,6.41815823]
[1727679881836,3.31432,156.77,156.74,6.41815823]
[1727679882141,3.31432,156.77,156.75,7.81]
[1727679885131,3.31432,156.77,156.76,7.81]
[1727679886043,0.12502,156.77,156.76,7.81]
[1727679886846,0.12502,156.77,156.76,17.02559813]
[1727679887642,0.12502,156.77,156.76,24.23246293]
[1727679890341,0.12502,156.77,156.76,18.2062648]
[1727679890543,0.12502,156.77,156.76,24.23542239]
[1727679892372,0.12502,156.77,156.76,17.02855759]
[1727679892554,0.12502,156.77,156.76,24.23736938]
[1727679892774,0.12502,156.77,156.76,17.02878354]
[1727679893060,0.12502,156.77,156.76,24.23736938]
[1727679895696,0.12502,156.77,156.76,17.02878354]
[1727679895864,0.12502,156.77,156.76,10.9994]
[1727679896061,0.12502,156.77,156.76,24.23677441]
[1727679896559,0.12502,156.77,156.76,17.0285086]
[1727679897464,0.12502,156.77,156.76,24.23661959]
[1727679898258,0.12502,156.77,156.76,17.0285086]
[1727679898989,0.12502,156.77,156.76,10.9994]
[1727679899159,0.12502,156.77,156.76,17.0283577]
[1727679899962,0.12502,156.77,156.76,24.23629489]
[1727679901285,0.12502,156.77,156.76,10.9994]
[1727679901565,0.12502,156.77,156.76,24.23619881]
[1727679904680,3.1884,156.81,156.78,3.1888]
[1727679904876,3.1884,156.81,156.8,7.81]
[1727679905369,0.12502,156.83,156.8,7.81]
[1727679905571,0.12502,156.83,156.82,10.9982]
[1727679907684,0.12502,156.83,156.82,7.81]
[1727679908083,0.12502,156.83,156.75,1.3675]
[1727679908282,0.12502,156.83,156.77,3.1891]
[1727679908583,0.12502,156.83,156.79,7.81]
[1727679908787,3.1886,156.8,156.79,7.81]
[1727679909174,0.12502,156.83,156.79,7.81]
[1727679909580,3.1885,156.81,156.79,7.81]
[1727679910086,3.1885,156.81,156.8,7.81]
[1727679911683,0.12502,156.83,156.79,7.81]
[1727679911880,3.1887,156.8,156.79,7.81]
[1727679912886,3.1882,156.82,156.79,7.81]
[1727679913077,3.1882,156.82,156.81,7.81]
[1727679916572,0.12502,156.83,156.81,7.81]
[1727679916774,3.31312,156.83,156.82,7.81]
[1727679917416,0.12502,156.83,156.82,7.81]
[1727679919284,3.31302,156.83,156.82,7.81]
[1727679920292,0.12502,156.83,156.82,7.81]
[1727679925397,0.12502,156.83,156.82,10.9982]
[1727679929800,78.47574244,156.88,156.85,3.1874]
[1727679929998,78.47574244,156.88,156.87,7.81]
[1727679930197,0.12502,156.89,156.87,7.81]
[1727679930801,3.31182,156.89,156.87,7.81]
[1727679931998,0.12502,156.89,156.87,7.81]
[1727679932194,3.1869,156.88,156.87,7.81]
[1727679933293,0.12502,156.89,156.87,7.81]
[1727679933493,0.12502,156.89,156.88,7.81]
[1727679939215,0.12502,156.89,156.88,10.9969]
[1727679939712,3.1862,156.92,156.88,10.9969]
[1727679940006,3.1862,156.92,156.91,7.81]
[1727679941011,1.2823,156.94,156.9,7.81]
[1727679941319,3.186,156.93,156.91,7.81]
[1727679941616,3.186,156.93,156.92,7.81]
[1727679944012,3.1859,156.94,156.92,7.81]
[1727679944929,0.12502,156.95,156.92,7.81]
[1727679945121,0.12502,156.95,156.94,7.81]
[1727679945515,0.12502,156.95,156.93,7.81]
[1727679946213,0.12502,156.95,156.91,3.1862]
[1727679946214,3.31052,156.95,156.91,3.1862]
[1727679946413,3.31052,156.95,156.92,7.81]
[1727679946414,0.12502,156.95,156.92,7.81]
[1727679946812,3.1858,156.94,156.92,7.81]
[1727679947026,3.1858,156.94,156.93,7.81]
[1727679947414,3.31062,156.95,156.93,7.81]
[1727679947623,0.12502,156.95,156.93,7.81]
[1727679949426,0.12502,156.95,156.94,7.81]
[1727679951341,3.31052,156.95,156.94,7.81]
[1727679953125,0.12502,156.95,156.94,10.9957]
[1727679953326,0.12502,156.95,156.94,7.81]
[1727679954328,0.12502,156.95,156.91,3.8657]
[1727679954623,0.12502,156.95,156.94,7.81]
[1727679956217,0.12502,156.95,156.92,3.186]
[1727679956434,0.12502,156.95,156.94,7.81]
[1727679960336,0.12502,156.95,156.94,10.9957]
[1727679960826,0.12502,156.95,156.94,7.81]
[1727679961429,0.12502,156.95,156.91,2.6065]
[1727679961728,3.1859,156.94,156.93,7.81]
[1727679961936,0.12502,156.95,156.93,7.81]
[1727679962331,0.12502,156.95,156.94,7.81]
[1727679963638,3.31052,156.95,156.94,7.81]
[1727679964529,0.12502,156.95,156.9,3.16101478]
[1727679964725,3.1859,156.94,156.93,7.81]
[1727679971136,3.31062,156.95,156.93,7.81]
[1727679971344,3.31062,156.95,156.94,7.81]
[1727679978446,0.12502,156.95,156.94,7.81]
[1727679978648,3.1847,157.0,156.96,3.1852]
[1727679978843,3.1847,157.0,156.99,7.81]
[1727679979152,3.30952,157.01,156.99,7.81]
[1727679979346,0.12502,157.01,157.0,7.81]
[1727679982652,3.30932,157.01,157.0,7.81]
[1727679983152,0.12502,157.01,156.92,3.857]
[1727679983559,0.12502,157.01,156.98,7.81]
[1727679983859,3.1847,156.99,156.98,7.81]
[1727679984251,3.1849,156.98,156.95,3.1854]
[1727679984448,3.1849,156.98,156.97,7.81]
[1727679984944,7.81,156.99,156.91,3.14786873]
[1727679985151,7.81,156.99,156.93,7.81]
[1727679985357,3.1857,156.94,156.91,3.1862]
[1727679985556,3.1857,156.94,156.92,7.81]
[1727679985752,7.81,156.97,156.92,7.81]
[1727679986557,3.1858,156.94,156.92,7.81]
[1727679988356,7.81,156.97,156.92,7.81]
[1727679988558,2.5751,156.98,156.94,7.81]
[1727679988759,0.12502,157.01,156.95,7.81]
[1727679988962,3.185,156.98,156.96,7.81]
[1727679989156,0.12502,157.01,156.96,7.81]
[1727679990266,3.1851,156.98,156.96,7.81]
[1727679991457,0.12502,157.01,156.96,7.81]
[1727679991663,0.12502,157.01,156.98,7.81]
[1727679992668,3.1845,157.0,156.98,7.81]
[1727679993060,0.12502,157.01,156.98,7.81]
[1727679993265,3.1847,156.99,156.98,7.81]
[1727679994667,3.1851,156.98,156.96,7.81]
[1727679994871,7.93502,157.01,156.96,7.81]
[1727679995767,7.93502,157.01,156.94,3.1856]
[1727679996172,7.93502,157.01,156.96,7.81]
[1727679996775,3.1851,156.97,156.96,7.81]
[1727679997576,3.1848,156.99,156.96,10.9952]
[1727679997774,3.1848,156.99,156.98,7.81]
[1727679997975,7.93502,157.01,156.91,2.62]
[1727679998176,7.93502,157.01,156.95,7.81]
[1727679998177,3.1855,156.96,156.95,7.81]
[1727680000073,3.1852,156.97,156.95,7.81]
[1727680002481,7.81,157.0,156.91,1.339]
[1727680002674,7.81,157.0,156.94,7.81]
[1727680003071,7.93502,157.01,156.96,7.81]
[1727680003874,3.185,156.98,156.96,7.81]
[1727680004277,0.12502,157.01,156.97,7.81]
[1727680005273,3.1848,156.99,156.97,7.81]
[1727680005675,0.12502,157.01,156.97,7.81]
[1727680006481,3.1847,157.0,156.97,7.81]
[1727680006979,0.12502,157.01,156.97,7.81]
[1727680008084,3.1848,156.99,156.97,7.81]
[1727680008280,0.12502,157.01,156.97,7.81]
[1727680008478,7.93502,157.01,156.96,7.81]
[1727680008685,3.185,156.98,156.96,7.81]
[1727680011189,7.93502,157.01,156.91,2.5917]
[1727680011490,3.1854,156.96,156.95,7.81]
[1727680011693,7.81,157.0,156.91,2.5917]
[1727680011895,7.81,157.0,156.92,6.01477337]
[1727680012083,7.81,156.99,156.91,2.5917]
[1727680012291,7.81,156.99,156.94,7.81]
[1727680013321,0.12502,157.01,156.91,2.5917]
[1727680013322,0.12502,157.01,156.98,7.81]
[1727680014294,3.1848,156.99,156.98,7.81]
[1727680017501,0.12502,157.01,156.98,7.81]
[1727680017802,0.12502,157.01,157.0,7.81]
[1727680018189,3.30932,157.01,157.0,7.81]
[1727680019803,3.1845,157.0,156.99,7.81]
[1727680025113,3.30942,157.01,156.99,7.81]
[1727680025312,3.30942,157.01,157.0,7.81]
[1727680027610,3.1848,156.99,156.98,7.81]
[1727680029604,0.12502,157.01,156.97,7.81]
[1727680029804,7.93502,157.01,156.95,7.81]
[1727680030812,3.1851,156.98,156.97,7.81]
[1727680032815,0.12502,157.01,156.92,7.81]
[1727680033115,0.12502,157.01,156.93,7.81]
[1727680033116,7.81,156.99,156.93,7.81]
[1727680034215,3.1855,156.96,156.93,7.81]
[1727680035005,3.1855,156.96,156.92,3.186]
[1727680035207,3.1855,156.96,156.94,7.81]
[1727680036821,1.3076,157.0,156.95,7.81]
[1727680037012,3.185,156.98,156.95,7.81]
[1727680037510,3.185,156.98,156.97,7.81]
[1727680038313,0.12502,157.01,156.97,7.81]
[1727680038314,3.1846,157.0,156.97,7.81]
[1727680039003,3.1847,157.0,156.97,7.81]
[1727680039309,0.12502,157.01,156.97,7.81]
[1727680039918,3.1845,157.0,156.97,7.81]
[1727680042222,3.1845,157.0,156.98,7.81]
[1727680043415,0.12502,157.01,156.99,7.81]
[1727680044418,3.1845,157.0,156.99,7.81]
[1727680048925,3.1847,156.99,156.97,7.81]
[1727680050324,3.1849,156.98,156.97,7.81]
[1727680052816,3.1848,156.99,156.97,7.81]
[1727680053527,3.1846,157.0,156.98,7.81]
[1727680055418,3.1847,156.99,156.98,7.81]
[1727680056119,0.12502,157.01,156.98,7.81]
[1727680056323,3.1845,157.0,156.98,10.9949]
[1727680057140,3.1845,157.0,156.97,3.21086929]
[1727680057426,3.1845,157.0,156.99,7.81]
[1727680057829,0.12502,157.01,156.93,11.51064322]
[1727680058027,3.1852,156.97,156.96,7.81]
[1727680058423,7.81,157.0,156.94,3.1856]
[1727680058628,3.1853,156.96,156.95,13.82724567]
[1727680059430,3.1852,156.97,156.95,13.82724567]
[1727680059729,3.1852,156.97,156.95,7.81]
[1727680060434,3.1852,156.97,156.96,7.81]
[1727680061227,3.1852,156.97,156.96,13.82786068]
[1727680061533,3.185,156.98,156.96,13.82786068]
[1727680061830,3.185,156.98,156.96,7.81]
[1727680062033,7.93502,157.01,156.97,10.9951]
[1727680062034,0.12502,157.01,156.97,10.9951]
[1727680062338,3.1845,157.0,156.97,10.9951]
[1727680062831,3.1845,157.0,156.99,7.81]
[1727680063634,3.30942,157.01,156.99,7.81]
[1727680071334,3.1845,157.0,156.99,7.81]
[1727680071741,0.12502,157.01,156.99,7.81]
[1727680071938,0.12502,157.01,157.0,10.9945]
[1727680072635,0.12502,157.01,157.0,14.19497154]
[1727680073543,0.12502,157.01,157.0,7.81]
[1727680074138,0.12502,157.01,156.95,1.3503]
[1727680074359,0.12502,157.01,156.99,7.81]
[1727680074537,0.12502,157.01,156.96,7.81]
[1727680074745,3.1851,156.98,156.96,7.81]
[1727680075737,3.1851,156.98,156.95,4.5357]
[1727680075931,3.1851,156.98,156.96,13.82403525]
[1727680076128,3.1851,156.98,156.96,7.81]
[1727680076336,7.81,157.0,156.95,7.81]
[1727680077037,3.1854,156.96,156.95,7.81]
[1727680077345,7.81,157.0,156.95,13.82451528]
[1727680077538,7.81,157.0,156.95,7.81]
[1727680077735,7.81,157.0,156.96,7.81]
[1727680077976,1.41172,157.01,156.96,7.81]
[1727680078633,3.185,156.98,156.96,7.81]
[1727680079043,3.1851,156.97,156.96,7.81]
[1727680084767,3.1851,156.97,156.95,7.81]
[1727680086444,7.81,156.99,156.93,10.9959]
[1727680086646,7.81,156.99,156.94,6.01676656]
[1727680086853,7.81,156.99,156.93,10.9959]
[1727680087052,3.1854,156.96,156.94,6.01674389]
[1727680087248,3.1854,156.96,156.93,10.9959]
[1727680087446,3.1854,156.96,156.94,6.01661767]
[1727680087642,3.1854,156.96,156.93,10.9959]
[1727680087844,3.1854,156.96,156.94,17.01227539]
[1727680088045,3.1854,156.96,156.95,6.01656324]
[1727680088265,3.1854,156.96,156.94,10.9957]
[1727680088753,3.1854,156.96,156.95,6.01649054]
[1727680088949,3.1852,156.97,156.95,6.01649054]
[1727680089250,3.1852,156.97,156.94,10.9957]
[1727680089454,3.1852,156.97,156.95,6.01651523]
[1727680089647,3.1852,156.97,156.94,10.9957]
[1727680089848,3.1852,156.97,156.95,6.01651523]
[1727680090047,3.1852,156.97,156.94,10.9957]
[1727680090239,3.1852,156.97,156.95,6.01653334]
[1727680090445,3.1852,156.97,156.94,10.9957]
[1727680090640,3.1852,156.97,156.95,6.01645959]
[1727680090853,3.1852,156.97,156.94,10.9957]
[1727680091061,3.1852,156.97,156.95,6.01645636]
[1727680091262,3.1853,156.96,156.94,10.9957]
[1727680093357,1.262,157.0,156.86,68.82]
[1727680093358,3.1857,156.94,156.86,68.82]
[1727680093553,3.1857,156.94,156.91,7.81]
[1727680093747,3.1857,156.94,156.92,6.01631934]
[1727680093959,3.1857,156.94,156.93,6.01631934]
[1727680094447,3.1856,156.95,156.93,6.01631934]
[1727680094646,3.1856,156.95,156.92,3.1861]
[1727680094846,7.81,156.96,156.93,6.01640655]
[1727680095048,7.81,156.95,156.87,1.2472]
[1727680095258,7.81,156.95,156.9,6.01629874]
[1727680095454,3.1862,156.92,156.91,6.01629874]
[1727680096258,3.1862,156.92,156.89,59.93512801]
[1727680096459,7.81,156.93,156.9,6.0146663]
[1727680096760,7.81,156.93,156.89,59.93512801]
[1727680096962,3.1865,156.91,156.9,6.01467485]
[1727680097356,7.81,156.93,156.89,59.93512801]
[1727680097756,7.81,156.93,156.9,6.01287117]
[1727680098057,3.1865,156.9,156.89,0.12502]
[1727680098258,3.1865,156.9,156.89,6.13776087]
[1727680098467,3.1865,156.9,156.89,0.12502]
[1727680101258,7.81,156.94,156.89,0.12502]
[1727680101963,3.1865,156.9,156.89,0.12502]
[1727680103569,10.9965,156.9,156.89,0.12502]
[1727680106962,3.1873,156.86,156.84,7.81]
[1727680107557,3.1873,156.86,156.84,10.9977]
[1727680108062,7.81,156.89,156.84,10.9977]
[1727680108264,3.1872,156.87,156.84,10.9977]
[1727680110969,7.81,156.89,156.84,7.81]
[1727680111168,3.1875,156.86,156.84,7.81]
[1727680111464,3.1875,156.86,156.83,3.31292]
[1727680111465,7.81,156.88,156.83,0.12502]
[1727680111667,3.1877,156.85,156.83,7.93502]
[1727680112681,3.1874,156.86,156.83,11.12292]
[1727680116978,3.1871,156.88,156.85,3.1875]
[1727680117584,3.1872,156.87,156.84,10.9977]
[1727680121281,7.81,156.9,156.84,7.81]
[1727680121477,7.81,156.9,156.83,0.12502]
[1727680121676,7.81,156.9,156.83,7.93502]
[1727680122587,3.1874,156.86,156.83,11.12282]
[1727680128999,7.81,156.88,156.83,7.93502]
[1727680129205,3.1876,156.85,156.83,7.93502]
[1727680133907,79.73043994,156.93,156.83,7.93502]
[1727680133908,3.1878,156.84,156.83,0.12502]
[1727680137103,10.9978,156.84,156.83,0.12502]
[1727680146210,7.81,156.84,156.79,21.44126571]
[1727680146416,10.9986,156.8,156.79,21.44126571]
[1727680147906,7.81,156.8,156.77,0.12502]
[1727680148103,10.999,156.78,156.77,0.12502]
[1727680148612,3.1902,156.73,156.69,68.88]
[1727680148814,3.1902,156.73,156.67,1.2872]
[1727680148815,11.0002,156.73,156.7,3.2059202]
[1727680149712,7.81,156.73,156.7,3.2059202]
[1727680150016,7.81,156.73,156.7,6.3964202]
[1727680151413,3.1899,156.74,156.7,6.3964202]
[1727680153514,7.81,156.74,156.7,3.1905]
[1727680153714,3.19,156.73,156.7,3.1905]
[1727680156723,3.8551,156.8,156.69,11.01311384]
[1727680156923,3.8551,156.8,156.71,3.31522]
[1727680156924,7.81,156.76,156.71,3.31522]
[1727680158121,3.1898,156.74,156.71,0.12502]
[1727680158322,3.8551,156.8,156.72,3.1901]
[1727680158522,7.81,156.76,156.72,3.1901]
[1727680158720,3.1898,156.75,156.72,3.1901]
[1727680161719,7.81,156.76,156.71,0.12502]
[1727680161927,3.1898,156.74,156.71,3.31532]
[1727680166730,3.1898,156.74,156.72,3.1902]
[1727680168826,3.1898,156.74,156.71,3.31532]
[1727680170031,3.1895,156.76,156.73,3.19]
[1727680170331,3.1895,156.76,156.71,7.93502]
[1727680170533,7.81,156.75,156.71,7.93502]
[1727680171228,10.9996,156.75,156.72,3.1901]
[1727680172328,3.1892,156.77,156.74,3.1897]
[1727680172529,7.81,156.79,156.74,10.9997]
[1727680173123,7.81,156.79,156.74,7.81]
[1727680173428,7.81,156.79,156.74,10.9997]
[1727680173835,7.81,156.79,156.75,3.1895]
[1727680174334,0.12502,156.83,156.79,3.1887]
[1727680174543,0.12502,156.83,156.79,10.9987]
[1727680175333,3.1883,156.82,156.79,10.9987]
[1727680177129,3.1883,156.82,156.79,7.81]
[1727680178528,8.28604738,156.81,156.78,5.82772361]
[1727680178736,8.28604738,156.81,156.79,7.81]
[1727680179233,8.28604738,156.8,156.79,7.81]
[1727680179436,3.1884,156.81,156.79,7.81]
[1727680182627,3.1883,156.82,156.8,7.81]
[1727680182834,0.12502,156.83,156.8,7.81]
[1727680183137,0.12502,156.83,156.82,7.81]
[1727680183529,0.12502,156.83,156.82,10.9982]
[1727680183735,0.12502,156.83,156.82,7.81]
[1727680185240,0.12502,156.83,156.82,10.9982]
[1727680191343,0.12502,156.83,156.81,3.1587373]
[1727680191534,0.12502,156.83,156.81,3.1883]
[1727680191736,0.12502,156.83,156.81,6.30528666]
[1727680192337,3.31302,156.83,156.8,10.9984]
[1727680192536,0.12502,156.83,156.8,7.81]
[1727680193034,0.12502,156.83,156.8,10.97482987]
[1727680194244,3.31302,156.83,156.8,14.16322987]
[1727680195146,0.12502,156.83,156.82,7.81]
[1727680195829,0.12502,156.83,156.82,10.9982]
[1727680196444,0.12502,156.83,156.82,14.18630997]
[1727680200131,0.12502,156.83,156.82,10.99810997]
[1727680200940,0.12502,156.83,156.82,14.18630997]
[1727680202753,0.12502,156.83,156.82,7.81]
[1727680207250,0.12502,156.83,156.82,10.9982]
[1727680207555,3.1871,156.87,156.82,7.81]
[1727680207750,0.12502,156.89,156.86,7.81]
[1727680208046,3.31182,156.89,156.86,7.81]
[1727680208450,3.31182,156.89,156.86,10.9972]
[1727680208652,3.31182,156.89,156.87,7.81]
[1727680208958,0.12502,156.89,156.87,7.81]
[1727680210153,0.12502,156.89,156.88,7.81]
[1727680210453,3.31172,156.89,156.88,7.81]
[1727680210645,3.31172,156.89,156.87,7.81]
[1727680211951,0.12502,156.89,156.87,7.81]
[1727680212147,0.12502,156.89,156.88,7.81]
[1727680212949,0.12502,156.89,156.88,11.0725396]
[1727680213350,0.12502,156.89,156.88,14.2594396]
[1727680213651,1.2934,156.96,156.88,11.0725396]
[1727680213851,9.1059,157.0,156.94,7.81]
[1727680214052,7.81,156.98,156.83,6.11068994]
[1727680214253,7.81,156.98,156.94,7.81]
[1727680214758,10.4272,157.0,156.94,7.81]
[1727680216057,2.6172,157.0,156.94,7.81]
[1727680216255,10.4272,157.0,156.94,7.81]
[1727680219068,2.6172,157.0,156.94,7.81]
[1727680219251,10.4272,157.0,156.94,7.81]
[1727680220763,2.6172,157.0,156.94,7.81]
[1727680221258,2.6172,157.0,156.94,10.9957]
[1727680221762,0.12502,157.13,157.02,3.1839]
[1727680221965,2.5356,157.09,157.02,3.14862398]
[1727680222171,2.5356,157.09,157.03,7.81]
[1727680222967,7.81,157.08,157.03,7.81]
[1727680223754,7.93502,157.07,156.99,3.24325476]
[1727680223955,7.93502,157.07,156.95,3.93302]
[1727680223956,7.93502,157.07,157.01,7.81]
[1727680224966,0.12502,157.07,157.01,7.81]
[1727680225162,7.93502,157.07,157.01,7.81]
[1727680225765,7.93502,157.07,157.03,7.81]
[1727680230062,0.12502,157.07,157.03,7.81]
[1727680230271,0.12502,157.07,157.04,7.81]
[1727680233060,0.12502,157.07,157.06,7.81]
[1727680233561,0.12502,157.13,157.06,7.81]
[1727680233768,0.12502,157.13,157.11,7.81]
[1727680234263,7.93502,157.13,157.03,3.9003]
[1727680234563,7.93502,157.13,157.08,7.81]
[1727680235870,7.93502,157.13,157.04,3.1835]
[1727680236163,1.3043,157.12,157.08,7.81]
[1727680237962,9.1143,157.12,157.03,3.9003]
[1727680238266,9.1143,157.12,157.07,7.81]
[1727680243570,0.12502,157.13,157.11,7.81]
[1727680243871,0.12502,157.13,157.03,3.9003]
[1727680244373,0.12502,157.13,157.09,7.81]
[1727680246566,0.12502,157.13,157.1,7.81]
[1727680246771,0.12502,157.13,157.03,3.9003]
[1727680246973,0.12502,157.13,157.11,7.81]
[1727680248177,0.12502,157.13,157.03,3.9003]
[1727680248367,0.12502,157.13,157.11,7.81]
[1727680250775,0.12502,157.13,157.12,7.81]
[1727680254383,0.12502,157.13,157.08,3.1827]
[1727680254582,0.12502,157.13,157.11,7.81]
[1727680255375,0.12502,157.13,157.07,3.183]
[1727680255681,0.12502,157.13,157.1,7.81]
[1727680258071,0.12502,157.13,157.12,7.81]
[1727680258475,0.12502,157.13,157.07,3.183]
[1727680258785,0.12502,157.13,157.09,7.81]
[1727680259488,0.12502,157.13,157.1,7.81]
[1727680262680,7.93502,157.13,157.09,7.81]
[1727680262987,7.93502,157.13,157.07,7.81]
[1727680263287,7.81,157.12,157.07,7.81]
[1727680263687,0.12502,157.13,157.09,7.81]
[1727680265389,7.93502,157.13,157.09,7.81]
[1727680266289,0.12502,157.13,157.09,7.81]
[1727680269192,0.12502,157.13,157.07,3.1831]
[1727680269193,7.93502,157.13,157.07,7.81]
[1727680271087,7.93502,157.13,157.09,7.81]
[1727680271391,0.12502,157.13,157.03,3.9003]
[1727680271592,0.12502,157.13,157.1,7.81]
[1727680272102,0.12502,157.13,157.11,7.81]
[1727680272285,0.12502,157.13,157.12,7.81]
[1727680273296,0.12502,157.19,157.12,7.81]
[1727680273482,0.12502,157.19,157.13,3.7944]
[1727680273698,0.12502,157.19,157.18,7.81]
[1727680277196,0.12502,157.25,157.18,7.81]
[1727680277503,0.12502,157.25,157.23,7.81]
[1727680279499,0.12502,157.25,157.24,7.81]
[1727680282899,0.12502,157.25,157.2,3.954]
[1727680283197,0.12502,157.25,157.23,7.81]
[1727680284502,0.12502,157.25,157.24,7.81]
[1727680284701,0.12502,157.25,157.2,3.954]
[1727680284904,0.12502,157.25,157.24,7.81]
[1727680288706,0.12502,157.25,157.2,3.954]
[1727680288908,0.12502,157.25,157.2,1.3206]
[1727680289102,0.12502,157.25,157.21,7.81]
[1727680289103,7.93502,157.25,157.21,7.81]
[1727680290306,0.12502,157.25,157.21,7.81]
[1727680290715,0.12502,157.25,157.24,7.81]
[1727680298914,0.12502,157.25,157.24,10.9896]
[1727680302313,0.12502,157.25,157.22,1.3657]
[1727680302616,0.12502,157.25,157.24,7.81]
[1727680303811,0.12502,157.25,157.23,7.81]
[1727680304017,0.12502,157.25,157.24,7.81]
[1727680304715,0.12502,157.25,157.2,3.17461832]
[1727680304919,0.12502,157.25,157.24,7.81]
[1727680306124,0.12502,157.31,157.24,7.81]
[1727680306323,0.12502,157.31,157.28,7.81]
[1727680309644,0.12502,157.31,157.21,2.5246]